bitfinex-derivatives/quotes_ETHF0:USTF0_20210402
["timestamp","ask_amount","ask_price","bid_price","bid_amount"]
[1617327769477,18.45165,1976.0,1975.8,2.90695]
[1617327770382,48.45165,1976.0,1975.8,2.90695]
[1617327771683,48.45165,1976.0,1975.6,2.90695]
[1617327773587,48.45165,1976.0,1975.9,2.90695]
[1617327774691,16.45165,1976.0,1975.9,2.90695]
[1617327774889,14.90695,1976.0,1975.9,2.90695]
[1617327775590,12.0,1976.0,1975.9,2.90695]
[1617327794113,12.0,1976.0,1975.9,4.21475]
[1617327797622,12.0,1976.0,1975.9,2.90695]
[1617327807834,14.90695,1976.0,1975.9,2.90695]
[1617327808234,14.90695,1976.0,1975.1,4.00240113]
[1617327808435,14.90695,1976.0,1975.0,60.9189806]
[1617327809536,14.90695,1976.0,1975.0,56.9157]
[1617327809938,12.0,1976.0,1975.6,2.90695]
[1617327811240,42.0,1976.0,1975.6,2.90695]
[1617327811842,2.90695,1975.7,1975.6,2.90695]
[1617327812041,4.12635,1975.7,1975.6,2.90695]
[1617327817450,2.90695,1975.7,1975.6,2.90695]
[1617327818650,16.72295,1975.7,1975.6,2.90695]
[1617327819754,18.02495,1975.7,1975.6,2.90695]
[1617327828679,16.72295,1975.7,1975.6,2.90695]
[1617327828877,13.816,1975.7,1975.6,2.90695]
[1617327832066,13.816,1975.7,1975.6,66.25885]
[1617327833367,13.816,1975.7,1975.6,2.90695]
[1617327833967,10.8327,1975.7,1975.6,4.90695]
[1617327834168,14.873,1975.9,1975.8,74.7936]
[1617327834368,11.1427,1975.9,1975.8,74.7936]
[1617327834569,11.1427,1975.9,1975.8,76.57760713]
[1617327836070,11.1427,1975.9,1975.8,79.48455713]
[1617327836371,11.1427,1975.9,1975.8,77.70055]
[1617327839075,11.1427,1975.9,1975.8,2.90695]
[1617327841076,12.1602,1975.9,1975.8,2.90695]
[1617327847181,42.1602,1975.9,1975.8,2.90695]
[1617327848582,42.1602,1975.9,1975.2,4.02041452]
[1617327848783,42.1602,1975.9,1975.0,5.16921525]
[1617327848784,42.1602,1975.9,1975.0,4.02396582]
[1617327849184,44.1602,1975.9,1974.7,4.02774375]
[1617327849785,44.1602,1975.9,1974.6,4.0294484]
[1617327849985,83.5547,1975.6,1974.7,2.90695]
[1617327850185,30.0,1975.5,1974.7,2.90695]
[1617327850385,31.3473,1975.5,1974.7,2.90695]
[1617327850786,14.2726,1975.4,1974.7,2.90695]
[1617327850987,44.2726,1975.4,1974.7,2.90695]
[1617327852088,44.2726,1975.4,1975.1,2.90695]
[1617327853991,2.90695,1975.2,1975.1,2.90695]
[1617327854191,44.2726,1975.4,1975.1,2.90695]
[1617327856192,2.90695,1975.2,1975.1,2.90695]
[1617327857194,32.90695,1975.2,1975.1,2.90695]
[1617327861001,32.90695,1975.2,1975.1,61.14985]
[1617327862604,34.00775,1975.2,1975.1,61.14985]
[1617327862805,34.00775,1975.2,1975.1,2.90695]
[1617327863005,65.4503,1975.1,1974.3,4.01449465]
[1617327863205,95.4503,1975.1,1974.3,4.01449465]
[1617327863406,95.4503,1975.1,1974.0,4.01804255]
[1617327863808,95.4503,1975.1,1973.9,4.02084545]
[1617327864007,95.4503,1975.1,1973.8,4.0220091]
[1617327864206,95.4503,1975.1,1974.6,2.90695]
[1617327864406,95.4503,1975.1,1973.8,4.0220091]
[1617327865207,95.4503,1975.1,1973.9,0.38834608]
[1617327865406,95.4503,1975.1,1973.8,4.0220091]
[1617327865709,95.4503,1975.1,1973.9,0.38826487]
[1617327866110,95.4503,1975.1,1973.9,4.40913025]
[1617327866311,95.4503,1975.1,1974.4,2.90695]
[1617327866712,95.4503,1975.1,1973.8,4.0213832]
[1617327866913,97.4503,1975.1,1973.8,4.0213832]
[1617327867112,97.4503,1975.1,1973.6,6.95564365]
[1617327867113,97.4503,1975.1,1973.7,4.02163407]
[1617327867714,97.4503,1975.1,1973.6,5.80722631]
[1617327868313,97.4503,1975.1,1973.8,2.90695]
[1617327868513,111.6957,1975.1,1973.8,2.90695]
[1617327870320,111.6957,1975.1,1973.6,5.80722631]
[1617327870321,111.6957,1975.1,1974.2,2.90695]
[1617327872323,2.90695,1974.3,1974.2,2.90695]
[1617327874324,13.9183,1974.5,1974.2,2.90695]
[1617327874725,14.8377,1974.4,1974.2,2.90695]
[1617327880439,2.90695,1974.3,1974.2,2.90695]
[1617327880637,4.26195,1974.3,1974.2,2.90695]
[1617327881638,88.95635,1974.3,1974.2,2.90695]
[1617327884344,4.26195,1974.3,1974.2,2.90695]
[1617327884844,2.90695,1974.3,1974.2,2.90695]
[1617327899457,14.8377,1974.4,1974.3,64.1634]
[1617327908664,14.8377,1974.4,1974.3,64.55148749]
[1617327912668,14.8377,1974.4,1974.3,66.55148749]
[1617327914069,14.8377,1974.4,1974.3,67.57808749]
[1617327917373,14.8377,1974.4,1974.3,3.41468749]
[1617327919475,14.8377,1974.4,1974.3,2.38808749]
[1617327920276,14.8377,1974.4,1974.3,3.81828749]
[1617327920576,14.8377,1974.4,1974.3,7.82914291]
[1617327923076,14.8377,1974.4,1974.3,3.81828749]
[1617327923275,14.8377,1974.4,1974.3,2.38808749]
[1617327929783,14.5504,1974.4,1974.3,6.40611767]
[1617327929983,14.5504,1974.4,1974.3,2.38808749]
[1617327930983,14.492,1974.4,1974.3,2.38808749]
[1617327932187,12.8969,1974.5,1974.4,63.0461]
[1617327932388,12.8969,1974.5,1974.4,65.43482505]
[1617327932587,12.1305,1974.5,1974.4,65.43482505]
[1617327932789,11.8925,1974.5,1974.4,72.3834774]
[1617327932986,11.6245,1974.5,1974.4,72.3834774]
[1617327933187,11.2095,1974.5,1974.4,75.2904274]
[1617327933390,11.2095,1974.5,1974.4,70.12620798]
[1617327936290,10.4264,1974.5,1974.4,70.12620798]
[1617327936893,7.5402,1974.5,1974.4,75.28986873]
[1617327937090,6.5302,1974.5,1974.4,75.28986873]
[1617327937589,6.5302,1974.5,1974.4,70.12620798]
[1617327937892,6.5302,1974.5,1974.4,75.28660541]
[1617327938491,6.5302,1974.5,1974.4,70.12620798]
[1617327938793,6.5302,1974.5,1974.4,75.29128458]
[1617327938992,6.3687,1974.5,1974.4,75.29128458]
[1617327939293,5.5439,1974.5,1974.4,75.29128458]
[1617327939692,4.8657,1974.5,1974.4,75.29128458]
[1617327939895,4.7637,1974.5,1974.4,75.29128458]
[1617327940092,4.5247,1974.5,1974.4,75.29128458]
[1617327940693,4.1707,1974.5,1974.4,75.29128458]
[1617327942294,1.9368,1974.5,1974.4,75.29128458]
[1617327942492,14.3766,1975.8,1974.4,75.29128458]
[1617327942896,14.3766,1975.8,1974.6,4.01672196]
[1617327943093,14.3766,1975.8,1974.6,6.01672196]
[1617327943292,14.3766,1975.8,1975.7,2.90695]
[1617327950007,14.3766,1975.8,1975.7,4.07705]
[1617327954214,14.3766,1975.8,1975.7,2.90695]
[1617327954413,14.3766,1975.8,1975.7,4.09415]
[1617327955617,14.3766,1975.8,1975.7,2.90695]
[1617327957417,14.3766,1975.8,1975.7,86.95595]
[1617327963326,14.3766,1975.8,1975.7,2.90695]
[1617327964328,14.3766,1975.8,1975.7,4.30535]
[1617327970137,14.3766,1975.8,1975.7,2.90695]
[1617327972140,14.3766,1975.8,1975.7,3.98475]
[1617327973039,14.3766,1975.8,1975.7,2.90695]
[1617327982151,14.3766,1975.8,1975.7,80.50835]
[1617327990764,15.3931,1975.8,1975.7,80.50835]
[1617327990964,15.4054,1975.8,1975.7,80.50835]
[1617327991566,15.4054,1975.8,1975.7,80.89774706]
[1617327991765,15.4054,1975.8,1975.7,3.29634706]
[1617327991965,14.3766,1975.8,1975.7,3.29634706]
[1617327994566,13.3143,1975.8,1975.7,3.29634706]
[1617327994767,11.9342,1975.8,1975.7,3.29634706]
[1617327995769,8.3469,1975.8,1975.7,3.29634706]
[1617327995968,8.2237,1975.8,1975.7,3.29634706]
[1617327997372,7.8757,1975.8,1975.7,3.29634706]
[1617327998172,5.3755,1975.8,1975.7,3.29634706]
[1617327998972,5.0275,1975.8,1975.7,3.29634706]
[1617328000172,4.6795,1975.8,1975.7,3.29634706]
[1617328000372,2.1168,1975.8,1975.7,3.29634706]
[1617328001174,0.8474,1975.8,1975.7,3.29634706]
[1617328002375,14.8277,1975.9,1975.8,71.2849]
[1617328002575,12.0,1976.0,1975.8,71.2849]
[1617328002776,12.0,1976.0,1975.8,73.06889824]
[1617328002975,12.0,1976.0,1975.9,0.38837809]
[1617328003375,11.6855,1976.0,1975.9,0.38837809]
[1617328003876,11.6855,1976.0,1975.9,3.29532809]
[1617328005979,11.6855,1976.0,1975.9,2.90695]
[1617328006379,11.6855,1976.0,1975.9,3.29491085]
[1617328006779,11.6855,1976.0,1975.9,2.90695]
[1617328007279,11.3379,1976.0,1975.9,2.90695]
[1617328008082,11.3379,1976.0,1975.9,3.29466432]
[1617328008684,11.3379,1976.0,1975.9,2.90695]
[1617328009288,11.3379,1976.0,1975.9,3.29503917]
[1617328009984,11.3379,1976.0,1975.9,2.90695]
[1617328010887,11.3379,1976.0,1975.9,3.29511911]
[1617328011290,11.3379,1976.0,1975.9,2.90695]
[1617328014091,11.3379,1976.0,1975.9,3.29546789]
[1617328018597,5.5851,1976.0,1975.9,3.29546789]
[1617328020898,5.5851,1976.0,1975.9,7.29489942]
[1617328022600,5.5851,1976.0,1975.9,3.29546789]
[1617328024705,5.5851,1976.0,1975.9,7.29340778]
[1617328025708,5.5851,1976.0,1975.9,3.29546789]
[1617328026408,5.5851,1976.0,1975.9,7.29469444]
[1617328028812,5.5851,1976.0,1975.9,3.29546789]
[1617328029511,5.5851,1976.0,1975.9,7.29509962]
[1617328030311,5.5851,1976.0,1975.9,3.29546789]
[1617328030511,4.8307,1976.0,1975.9,3.29546789]
[1617328030712,4.0762,1976.0,1975.9,3.29546789]
[1617328030912,3.3409,1976.0,1975.9,3.29546789]
[1617328031113,2.9985,1976.0,1975.9,3.29546789]
[1617328031512,2.9217,1976.0,1975.9,3.29546789]
[1617328032416,2.9217,1976.0,1975.9,7.29530424]
[1617328036617,2.9217,1976.0,1975.9,4.38835424]
[1617328038218,2.9217,1976.0,1975.9,3.29546789]
[1617328038618,2.9217,1976.0,1975.9,81.26416789]
[1617328038819,2.9217,1976.0,1975.9,3.29546789]
[1617328041621,1.9078,1976.0,1975.9,3.29546789]
[1617328046525,29.3648,1976.8,1975.9,3.29546789]
[1617328046725,29.3648,1976.8,1976.7,2.90695]
[1617328047326,29.3648,1976.8,1976.3,84.0809]
[1617328048627,29.3648,1976.8,1976.7,2.90695]
[1617328048828,29.3648,1976.8,1976.7,3.92865]
[1617328051129,29.3648,1976.8,1976.7,2.90695]
[1617328053533,31.3648,1976.8,1976.7,2.90695]
[1617328068654,29.3648,1976.8,1976.7,2.90695]
[1617328073759,40.3648,1976.8,1976.7,2.90695]
[1617328074159,41.6999,1976.8,1976.7,2.90695]
[1617328074359,43.6999,1976.8,1976.7,2.90695]
[1617328076561,73.6999,1976.8,1976.7,2.90695]
[1617328076961,76.60685,1976.8,1976.7,2.90695]
[1617328082967,71.6999,1976.8,1976.7,2.90695]
[1617328084068,41.6999,1976.8,1976.7,2.90695]
[1617328084269,40.3648,1976.8,1976.7,2.90695]
[1617328094283,40.3448,1976.8,1976.7,2.90695]
[1617328097188,41.58,1976.8,1976.7,2.90695]
[1617328098389,40.3448,1976.8,1976.7,2.90695]
[1617328101389,110.8686,1976.8,1976.7,2.90695]
[1617328102888,40.3448,1976.8,1976.7,2.90695]
[1617328110795,40.3248,1976.8,1976.7,2.90695]
[1617328121710,25.6436,1976.8,1976.7,2.90695]
[1617328121912,25.6436,1976.8,1976.7,4.45395]
[1617328122112,23.1025,1976.8,1976.7,4.45395]
[1617328122311,20.5614,1976.8,1976.7,4.84253858]
[1617328122911,20.5614,1976.8,1976.7,9.97734479]
[1617328123312,20.5614,1976.8,1976.7,4.84253858]
[1617328123813,20.5614,1976.8,1976.7,8.82837797]
[1617328124413,20.5614,1976.8,1976.7,3.29553858]
[1617328124613,20.5614,1976.8,1976.7,2.90695]
[1617328124813,20.5614,1976.8,1976.7,4.69009574]
[1617328125215,20.5614,1976.8,1976.7,2.90695]
[1617328128522,21.9509,1976.8,1976.7,2.90695]
[1617328129323,24.85785,1976.8,1976.7,2.90695]
[1617328129927,21.9509,1976.8,1976.7,2.90695]
[1617328130527,20.5614,1976.8,1976.7,2.90695]
[1617328130927,20.5614,1976.8,1976.7,62.33175]
[1617328137433,20.5614,1976.8,1976.7,63.83475]
[1617328140037,20.5614,1976.8,1976.7,62.33175]
[1617328145946,20.5614,1976.8,1976.7,2.90695]
[1617328147650,20.5614,1976.8,1976.7,3.29647909]
[1617328148750,20.5614,1976.8,1976.7,86.02007909]
[1617328149151,20.5614,1976.8,1976.7,87.80293225]
[1617328150255,20.5614,1976.8,1976.7,5.07933225]
[1617328150657,20.5614,1976.8,1976.7,7.2798559]
[1617328152058,20.5614,1976.8,1976.7,3.29647909]
[1617328152257,11.0,1976.8,1976.7,3.29647909]
[1617328154162,11.0,1976.8,1976.7,8.41063852]
[1617328154359,11.0,1976.8,1976.7,3.29647909]
[1617328154759,11.0,1976.8,1976.7,8.41140257]
[1617328157061,11.0,1976.8,1976.7,10.41140257]
[1617328157261,10.7999,1976.8,1976.7,5.29647909]
[1617328157461,10.4664,1976.8,1976.7,5.29647909]
[1617328158665,10.4664,1976.8,1976.7,10.41472674]
[1617328159665,10.4664,1976.8,1976.7,5.29647909]
[1617328160868,10.4664,1976.8,1976.7,10.41515229]
[1617328161869,10.4664,1976.8,1976.7,5.29647909]
[1617328163068,10.4664,1976.8,1976.7,9.27203646]
[1617328166971,10.4664,1976.8,1976.7,7.27203646]
[1617328167373,10.4664,1976.8,1976.7,3.29647909]
[1617328170676,10.4664,1976.8,1976.7,9.26859803]
[1617328170876,10.4664,1976.8,1976.7,10.81429803]
[1617328171278,10.4664,1976.8,1976.7,6.84217909]
[1617328171881,10.4664,1976.8,1976.7,5.29647909]
[1617328174484,10.4664,1976.8,1976.7,9.26565052]
[1617328178688,10.4664,1976.8,1976.7,5.29647909]
[1617328179390,10.4664,1976.8,1976.7,9.26818461]
[1617328181192,10.4664,1976.8,1976.7,5.29647909]
[1617328181792,10.4664,1976.8,1976.7,9.27057879]
[1617328182294,10.4664,1976.8,1976.7,5.29647909]
[1617328182498,10.4664,1976.8,1976.7,10.40343699]
[1617328183096,10.4664,1976.8,1976.7,5.29647909]
[1617328183295,10.4664,1976.8,1976.7,10.40184225]
[1617328183699,10.4664,1976.8,1976.7,5.29647909]
[1617328184500,10.4664,1976.8,1976.7,9.27016138]
[1617328184901,10.4664,1976.8,1976.7,5.29647909]
[1617328190210,10.4664,1976.8,1976.7,3.29647909]
[1617328192612,10.4664,1976.8,1976.7,7.27397738]
[1617328194414,10.4664,1976.8,1976.7,3.29647909]
[1617328197116,10.4664,1976.8,1976.7,4.73727909]
[1617328197316,10.4664,1976.8,1976.7,6.73727909]
[1617328198221,4.4205,1976.8,1976.7,6.73727909]
[1617328198416,1.1412,1976.8,1976.7,6.73727909]
[1617328198616,0.0001,1976.8,1976.7,6.73727909]
[1617328198817,14.745,1978.1,1976.7,11.8474627]
[1617328199217,14.745,1978.1,1976.9,3.97413304]
[1617328199417,14.745,1978.1,1977.9,65.2211]
[1617328200018,14.745,1978.1,1978.0,2.90695]
[1617328200717,17.66475,1978.9,1978.0,2.90695]
[1617328201118,17.66475,1978.9,1978.0,4.54465]
[1617328201919,17.66475,1978.9,1978.8,65.13935]
[1617328202319,2.90695,1978.9,1978.8,65.13935]
[1617328202520,2.0,1979.4,1978.8,65.13935]
[1617328203120,2.0,1979.4,1978.8,66.15395]
[1617328203420,13.8302,1979.5,1978.8,3.92155]
[1617328203621,2.0,1980.1,1978.8,3.92155]
[1617328203821,2.0,1980.1,1979.5,73.0723]
[1617328204022,2.90695,1980.1,1980.0,2.90695]
[1617328204223,2.90695,1980.1,1980.0,4.46235]
[1617328204624,2.0,1980.6,1980.0,4.46235]
[1617328204825,2.0,1980.7,1980.0,4.46235]
[1617328205227,2.0,1980.7,1980.0,5.47675]
[1617328206027,2.0,1980.7,1980.6,2.90695]
[1617328207227,2.0,1980.7,1979.5,0.9972]
[1617328207426,2.0,1980.7,1978.9,58.2988]
[1617328207928,2.90695,1980.3,1980.0,2.90695]
[1617328210031,2.90695,1980.3,1980.2,2.90695]
[1617328211234,2.90695,1980.3,1979.4,1.0177]
[1617328211434,2.90695,1980.3,1978.9,58.2988]
[1617328211935,2.90695,1980.3,1980.2,2.90695]
[1617328215135,4.90695,1980.3,1980.2,2.90695]
[1617328215938,4.90695,1980.3,1980.0,2.90695]
[1617328217940,4.90695,1980.3,1979.5,1.004]
[1617328217941,2.0,1980.3,1980.2,62.99455]
[1617328218340,2.0,1980.6,1980.2,62.99455]
[1617328220045,2.0,1980.6,1980.4,2.90695]
[1617328220649,14.8166,1980.7,1980.4,2.90695]
[1617328221253,14.8166,1980.7,1980.4,3.91565]
[1617328222049,10.08435,1980.3,1980.2,60.0876]
[1617328222443,14.8166,1980.7,1980.0,1.0055]
[1617328223947,14.8166,1980.7,1980.6,2.90695]
[1617328224144,14.8166,1980.7,1980.6,3.92745]
[1617328228045,17.72355,1980.7,1980.6,3.92745]
[1617328228446,17.72355,1980.7,1980.6,2.90695]
[1617328228649,17.72355,1980.7,1980.0,1.0055]
[1617328228851,18.75875,1980.7,1980.0,1.0055]
[1617328230055,15.8518,1980.7,1980.6,2.90695]
[1617328230855,14.8166,1980.7,1980.6,2.90695]
[1617328232057,17.72355,1980.7,1980.6,2.90695]
[1617328234165,14.8166,1980.7,1980.6,2.90695]
[1617328234564,25.8166,1980.7,1980.6,2.90695]
[1617328238167,28.72355,1980.7,1980.6,2.90695]
[1617328238367,30.34675,1980.7,1980.6,2.90695]
[1617328239969,28.72355,1980.7,1980.6,2.90695]
[1617328241270,25.8166,1980.7,1980.6,2.90695]
[1617328241672,25.8166,1980.7,1980.6,80.30275]
[1617328251478,26.9965,1980.7,1980.6,80.30275]
[1617328252878,28.9965,1980.7,1980.6,80.30275]
[1617328253079,28.9965,1980.7,1980.6,2.90695]
[1617328253280,26.9965,1980.7,1980.6,2.90695]
[1617328254282,28.9965,1980.7,1980.6,2.90695]
[1617328254480,26.9965,1980.7,1980.6,2.90695]
[1617328255480,28.9965,1980.7,1980.6,2.90695]
[1617328255680,26.9965,1980.7,1980.6,2.90695]
[1617328256081,25.8166,1980.7,1980.6,2.90695]
[1617328260085,27.44,1980.7,1980.6,2.90695]
[1617328263789,25.8166,1980.7,1980.6,2.90695]
[1617328286818,11.0,1980.7,1980.6,2.90695]
[1617328288119,10.7058,1980.7,1980.6,2.90695]
[1617328288317,9.1203,1980.7,1980.6,2.90695]
[1617328288519,8.5712,1980.7,1980.6,2.90695]
[1617328290024,8.4452,1980.7,1980.6,2.90695]
[1617328290424,8.2532,1980.7,1980.6,2.90695]
[1617328293126,8.2532,1980.7,1980.6,62.49245]
[1617328293324,7.2472,1980.7,1980.6,62.49245]
[1617328297730,6.4678,1980.7,1980.6,62.49245]
[1617328298133,2.5604,1980.7,1980.6,62.49245]
[1617328298633,11.867,1980.8,1980.6,62.49245]
[1617328298831,11.4358,1980.8,1980.6,62.49245]
[1617328299233,9.9889,1980.8,1980.6,62.49245]
[1617328301144,8.9749,1980.8,1980.6,62.49245]
[1617328302244,8.8681,1980.8,1980.6,2.90695]
[1617328302444,7.8731,1980.8,1980.6,2.90695]
[1617328303846,6.8621,1980.8,1980.6,2.90695]
[1617328305149,6.1057,1980.8,1980.6,2.90695]
[1617328306554,5.8397,1980.8,1980.6,2.90695]
[1617328306755,5.1067,1980.8,1980.6,2.90695]
[1617328307354,4.49555,1981.5,1980.6,2.90695]
[1617328307959,4.49555,1981.5,1981.1,75.6312]
[1617328308155,2.90695,1981.5,1981.1,75.6312]
[1617328308857,2.90695,1981.5,1981.4,2.90695]
[1617328310764,2.90695,1981.7,1981.5,78.1164]
[1617328312665,2.90695,1981.7,1981.6,2.90695]
[1617328315770,2.0,1982.9,1981.6,2.90695]
[1617328315973,0.01476052,1983.1,1981.7,82.5892]
[1617328316176,28.6597,1983.3,1981.7,82.5892]
[1617328316676,28.6597,1983.3,1982.9,2.90695]
[1617328316876,28.6597,1983.3,1982.9,4.07195]
[1617328317975,28.6597,1983.3,1982.9,5.08805]
[1617328318776,28.6597,1983.3,1983.1,2.90695]
[1617328319580,14.4964,1983.3,1983.1,2.90695]
[1617328320780,2.90695,1983.2,1983.1,2.90695]
[1617328320982,2.90695,1983.2,1979.1,10.65071805]
[1617328321183,4.12505,1983.2,1981.4,56.4481]
[1617328321585,2.0,1983.1,1981.4,56.4481]
[1617328321786,46.556,1983.1,1981.4,56.4481]
[1617328322584,16.556,1983.1,1981.4,56.4481]
[1617328322785,16.556,1983.1,1982.1,2.90695]
[1617328323385,16.556,1983.1,1982.9,56.8974]
[1617328323785,14.556,1983.1,1982.9,56.8974]
[1617328324888,2.90695,1983.0,1982.9,56.8974]
[1617328325888,18.34285,1983.6,1982.9,56.8974]
[1617328326088,3.12869916,1985.0,1982.9,56.8974]
[1617328326089,1.13140847,1984.6,1982.9,1.0204]
[1617328326289,30.0,1983.7,1983.4,71.6121]
[1617328326489,30.0,1983.6,1983.4,73.0579]
[1617328326893,30.0,1983.6,1983.5,2.90695]
[1617328327895,0.29460877,1984.9,1983.6,77.943]
[1617328328096,0.29460004,1985.0,1983.6,77.943]
[1617328328497,1.30718214,1985.2,1983.6,77.943]
[1617328328697,30.0,1985.2,1983.6,77.943]
[1617328328898,30.0,1985.2,1984.2,2.90695]
[1617328329797,30.0,1985.1,1984.2,2.90695]
[1617328329997,2.0,1985.3,1984.2,2.90695]
[1617328330402,2.0,1985.3,1984.7,76.4888]
[1617328330799,2.0,1985.3,1984.0,1.5638]
[1617328331000,2.90695,1984.8,1983.9,2.90695]
[1617328331800,4.90695,1984.8,1983.9,2.90695]
[1617328332902,2.90695,1984.0,1983.9,2.90695]
[1617328336905,2.90695,1984.2,1983.9,2.90695]
[1617328337105,2.90695,1984.2,1983.9,32.90695]
[1617328337306,14.0827,1984.1,1983.9,32.90695]
[1617328338305,13.3716,1985.1,1983.9,32.90695]
[1617328338505,13.3716,1985.1,1984.1,64.0182]
[1617328338705,13.3716,1985.1,1984.2,30.0]
[1617328338906,2.90695,1985.0,1984.7,2.90695]
[1617328339307,2.90695,1985.0,1984.1,65.4806]
[1617328339508,2.90695,1985.0,1984.1,1.4624]
[1617328339708,4.51715,1985.0,1983.7,92.1906]
[1617328340507,4.51715,1985.0,1983.7,30.0]
[1617328340707,2.90695,1985.0,1984.5,71.431]
[1617328340907,13.3716,1985.1,1984.6,2.90695]
[1617328342918,2.90695,1984.7,1984.6,2.90695]
[1617328346311,13.3716,1985.1,1984.6,81.58205]
[1617328346911,13.3716,1985.1,1984.9,2.90695]
[1617328347512,2.0,1985.0,1984.9,2.90695]
[1617328347714,13.3716,1985.1,1984.9,2.90695]
[1617328348112,13.3716,1985.1,1984.6,78.6751]
[1617328348314,14.7702,1985.1,1983.9,30.0]
[1617328348713,2.0,1985.0,1983.9,30.0]
[1617328348912,2.0,1985.0,1984.6,2.90695]
[1617328350915,2.0,1985.0,1984.8,2.90695]
[1617328351315,14.7702,1985.1,1984.8,2.90695]
[1617328352016,13.3716,1985.1,1984.8,2.90695]
[1617328353016,2.90695,1984.9,1984.8,2.90695]
[1617328356122,13.3716,1985.1,1984.8,2.90695]
[1617328356924,13.3716,1985.1,1985.0,2.90695]
[1617328357927,15.3716,1985.1,1985.0,2.90695]
[1617328359025,18.27855,1985.1,1984.8,2.90695]
[1617328359226,19.40385,1985.1,1984.8,2.90695]
[1617328360928,2.90695,1984.9,1984.6,2.90695]
[1617328361831,2.90695,1984.9,1984.1,1.0073]
[1617328362434,2.90695,1984.9,1983.6,1.0177]
[1617328362833,15.3716,1985.1,1983.6,1.0177]
[1617328363034,13.3716,1985.1,1985.0,2.90695]
[1617328363633,12.6746,1985.1,1985.0,2.90695]
[1617328363834,12.196,1985.1,1985.0,2.90695]
[1617328364033,11.9065,1985.1,1985.0,2.90695]
[1617328364234,11.9065,1985.1,1985.0,32.90695]
[1617328364433,10.0777,1985.1,1985.0,32.90695]
[1617328365035,0.1527,1985.1,1985.0,32.90695]
[1617328365235,2.90695,1985.7,1985.0,32.90695]
[1617328367040,2.90695,1985.7,1985.6,2.90695]
[1617328368150,2.90695,1985.7,1985.6,3.92845]
[1617328368850,2.0,1987.1,1985.6,3.92845]
[1617328369050,2.90695,1986.1,1986.0,2.90695]
[1617328381473,2.90695,1986.1,1986.0,32.90695]
[1617328382674,2.90695,1986.1,1986.0,113.28845]
[1617328384274,2.30565,1986.1,1986.0,113.28845]
[1617328384474,1.76265,1986.1,1986.0,113.28845]
[1617328384675,12.76265,1986.1,1986.0,113.28845]
[1617328385177,11.0,1986.1,1986.0,113.28845]
[1617328391381,10.5705,1986.1,1986.0,113.28845]
[1617328391580,10.0007,1986.1,1986.0,113.28845]
[1617328391782,9.9244,1986.1,1986.0,113.28845]
[1617328392381,9.6242,1986.1,1986.0,113.28845]
[1617328393484,9.1571,1986.1,1986.0,113.28845]
[1617328393683,8.1422,1986.1,1986.0,115.28845]
[1617328393884,7.4028,1986.1,1986.0,115.28845]
[1617328394385,6.4038,1986.1,1986.0,115.28845]
[1617328395984,4.5989,1986.1,1986.0,115.28845]
[1617328396683,3.6049,1986.1,1986.0,115.28845]
[1617328397284,2.5694,1986.1,1986.0,115.28845]
[1617328397484,13.1637,1986.2,1986.0,115.28845]
[1617328398485,12.2865,1986.2,1986.0,115.28845]
[1617328399387,11.0434,1986.2,1986.0,115.28845]
[1617328399890,10.0845,1986.2,1986.0,115.28845]
[1617328400389,9.9663,1986.2,1986.0,115.28845]
[1617328400990,9.8004,1986.2,1986.0,115.28845]
[1617328401191,9.5849,1986.2,1986.0,115.28845]
[1617328401390,7.8546,1986.2,1986.0,115.28845]
[1617328402691,7.7492,1986.2,1986.0,115.28845]
[1617328402891,7.7492,1986.2,1986.0,116.71165]
[1617328403091,7.5789,1986.2,1986.0,116.71165]
[1617328403491,7.1353,1986.2,1986.0,116.71165]
[1617328403699,7.1353,1986.2,1986.0,114.71165]
[1617328403901,6.645,1986.2,1986.0,113.28845]
[1617328407294,5.1405,1986.2,1986.0,113.28845]
[1617328407795,3.6043,1986.2,1986.0,113.28845]
[1617328407995,2.6119,1986.2,1986.0,113.28845]
[1617328408797,17.1421,1986.2,1986.0,113.28845]
[1617328409795,17.0581,1986.2,1986.0,113.28845]
[1617328410296,16.0765,1986.2,1986.0,113.28845]
[1617328410495,15.0665,1986.2,1986.0,113.28845]
[1617328411597,14.0745,1986.2,1986.0,113.28845]
[1617328412798,13.9951,1986.2,1986.0,113.28845]
[1617328413298,12.9801,1986.2,1986.0,113.28845]
[1617328413997,12.2355,1986.2,1986.0,113.28845]
[1617328414497,11.2243,1986.2,1986.0,113.28845]
[1617328414999,10.9838,1986.2,1986.0,113.28845]
[1617328416600,10.9118,1986.2,1986.0,113.28845]
[1617328417001,9.7661,1986.2,1986.0,113.28845]
[1617328417199,8.5197,1986.2,1986.0,113.28845]
[1617328417499,8.3324,1986.2,1986.0,113.28845]
[1617328418402,7.5337,1986.2,1986.0,113.28845]
[1617328419704,6.6857,1986.2,1986.0,113.28845]
[1617328422005,6.5507,1986.2,1986.0,113.28845]
[1617328422205,5.8089,1986.2,1986.0,113.28845]
[1617328422405,5.6256,1986.2,1986.0,113.28845]
[1617328422805,14.5156,1987.4,1986.0,32.90695]
[1617328423005,14.5156,1987.4,1986.9,30.0]
[1617328423505,13.457,1987.4,1986.9,30.0]
[1617328423705,13.1183,1987.4,1986.9,30.0]
[1617328423905,11.8102,1987.4,1987.3,2.90695]
[1617328424106,9.8362,1987.4,1987.3,32.90695]
[1617328425005,9.8362,1987.4,1987.3,33.90165]
[1617328425909,12.74315,1987.4,1987.3,33.90165]
[1617328433817,2.90695,1987.4,1987.3,33.90165]